bitfinex/quotes_ETHUSD_20250730
["timestamp","ask_amount","ask_price","bid_price","bid_amount"]
[1753893785794,4.144,3795.7,3795.6,0.9305]
[1753893786836,4.143,3795.7,3795.6,0.9305]
[1753893791718,4.142,3795.7,3795.6,0.9305]
[1753893793256,4.142,3795.7,3795.6,0.001]
[1753893793897,4.142,3795.7,3795.6,0.4988]
[1753893794798,4.142,3795.7,3795.6,0.9305]
[1753893796694,4.142,3795.7,3795.6,0.469]
[1753893796913,4.142,3795.7,3795.6,1.7411]
[1753893797838,0.132,3795.9,3795.6,1.7411]
[1753893798039,4.14,3795.8,3795.7,0.9374]
[1753893799515,0.002,3796.1,3795.7,0.9374]
[1753893799732,4.14,3796.0,3795.8,0.9374]
[1753893799900,4.14,3796.0,3795.6,0.8037]
[1753893800100,4.14,3796.0,3795.9,0.132]
[1753893800338,4.14,3796.0,3795.9,1.0694]
[1753893801014,4.14,3796.0,3795.9,0.6]
[1753893801723,4.14,3796.0,3795.9,0.132]
[1753893801912,5.0943,3796.0,3795.6,0.001]
[1753893802111,1.0863,3795.9,3795.6,0.001]
[1753893802957,0.9543,3795.8,3795.6,0.001]
[1753893803240,0.132,3795.7,3795.6,0.001]
[1753893803439,1.0863,3795.7,3795.6,0.001]
[1753893803742,0.132,3795.7,3795.6,0.001]
[1753893804156,0.132,3796.0,3795.6,0.469]
[1753893804312,4.138,3795.9,3795.7,0.468]
[1753893806163,0.134,3796.1,3795.8,0.468]
[1753893806347,4.138,3796.0,3795.8,0.9374]
[1753893806657,0.002,3796.1,3795.9,0.9374]
[1753893806830,4.138,3796.0,3795.9,0.132]
[1753893807030,4.138,3796.0,3795.9,0.9154]
[1753893807425,4.138,3796.0,3795.9,1.8528]
[1753893808412,4.138,3796.0,3795.6,0.001]
[1753893808619,4.138,3796.0,3795.8,0.132]
[1753893808814,4.138,3796.0,3795.6,0.469]
[1753893808815,5.0923,3796.0,3795.6,0.001]
[1753893809028,0.4973,3795.9,3795.6,0.001]
[1753893809437,4.727,3796.0,3795.6,0.001]
[1753893809921,4.138,3796.0,3795.7,0.9374]
[1753893810123,4.138,3796.0,3795.8,0.468]
[1753893810471,0.002,3796.1,3795.9,1.7208]
[1753893810648,0.002,3796.1,3795.9,0.132]
[1753893810955,0.459,3796.1,3795.9,0.132]
[1753893811135,1.0863,3796.0,3795.6,0.001]
[1753893812021,1.0883,3796.0,3795.6,0.001]
[1753893812561,0.134,3796.0,3795.6,0.4704]
[1753893812859,0.134,3796.0,3795.7,0.468]
[1753893813033,0.134,3796.0,3795.7,0.9374]
[1753893813660,0.002,3796.0,3795.8,0.9374]
[1753893813858,0.002,3796.0,3795.9,1.0694]
[1753893814059,0.002,3796.0,3795.9,0.6]
[1753893815065,0.002,3796.0,3795.9,0.132]
[1753893816648,0.9563,3796.0,3795.6,0.001]
[1753893817046,0.002,3796.0,3795.7,0.468]
[1753893817862,0.002,3796.0,3795.6,0.001]
[1753893818066,0.459,3796.0,3795.6,0.001]
[1753893818263,0.9543,3795.9,3795.6,0.001]
[1753893818564,0.002,3796.0,3795.6,0.001]
[1753893818745,0.002,3796.0,3795.6,0.469]
[1753893819356,0.8316,3795.9,3794.1,0.04]
[1753893819677,43.2685633,3794.2,3794.1,0.04]
[1753893819974,39.6219,3794.2,3794.1,0.04]
[1753893821062,35.4679,3794.2,3794.1,0.04]
[1753893821261,35.66856068,3794.2,3794.1,0.04]
[1753893821426,39.82156068,3794.2,3794.1,0.04]
[1753893821632,39.82056068,3794.2,3794.1,0.04]
[1753893822053,40.06632292,3794.2,3794.1,0.04]
[1753893822252,40.31206537,3794.2,3794.1,0.04]
[1753893822452,3.9636,3794.2,3794.1,0.04]
[1753893822772,7.284,3794.2,3794.1,0.04]
[1753893823345,7.52953739,3794.2,3794.1,0.04]
[1753893825944,4.39553739,3794.2,3794.1,0.9774]
[1753893826144,4.39553739,3794.2,3794.1,1.1094]
[1753893826369,39.12053739,3794.2,3794.1,0.04]
[1753893826568,39.67053739,3794.2,3794.1,0.04]
[1753893826972,42.30613909,3794.2,3794.1,0.04]
[1753893827367,8.15613909,3794.2,3794.1,0.04]
[1753893827668,3.55,3793.7,3793.1,1.04]
[1753893827872,1.3698,3793.5,3793.1,1.04]
[1753893828272,0.55,3793.3,3793.1,1.04]
[1753893828471,8.2301,3793.2,3793.1,1.04]
[1753893828845,3.0,3793.2,3793.1,1.04]
[1753893829079,7.184,3793.2,3793.1,1.04]
[1753893829875,3.0,3793.2,3793.1,1.04]
[1753893830084,7.183,3793.2,3793.1,1.04]
[1753893831169,7.181,3793.2,3793.1,1.04]
[1753893831913,4.178,3793.2,3793.1,1.9366]
[1753893832486,8.2241,3793.2,3793.1,1.04]
[1753893832813,9.4154,3793.2,3793.1,1.04]
[1753893833177,9.4154,3793.2,3793.1,0.99414411]
[1753893833379,8.9824,3793.2,3793.1,0.99414411]
[1753893833900,8.4863,3793.2,3793.1,0.99414411]
[1753893834104,3.7513,3793.2,3793.1,0.99414411]
[1753893834309,7.185,3793.2,3793.1,0.99414411]
[1753893835176,7.184,3793.2,3793.1,0.99414411]
[1753893836526,7.316,3793.2,3793.1,0.99414411]
[1753893836876,3.132,3793.2,3793.1,0.99414411]
[1753893837077,7.311,3793.2,3793.1,1.89074411]
[1753893837517,7.179,3793.2,3793.1,1.89074411]
[1753893837822,7.179,3793.2,3793.1,1.45824411]
[1753893838022,7.311,3793.2,3793.1,0.99414411]
[1753893840897,4.176,3793.2,3793.1,1.42664411]
[1753893841124,4.176,3793.2,3793.1,0.99414411]
[1753893844641,4.171,3793.2,3793.1,1.89074411]
[1753893845417,0.132,3793.3,3793.2,0.7736]
[1753893845744,4.169,3793.3,3793.2,1.6702]
[1753893846106,0.132,3793.8,3793.2,1.6702]
[1753893846306,0.7602,3794.4,3793.3,0.8966]
[1753893846504,4.174,3794.3,3793.5,0.8173]
[1753893846708,4.306,3794.2,3793.7,0.132]
[1753893846932,4.175,3794.1,3793.8,0.8966]
[1753893847147,6.333,3794.7,3793.9,0.8966]
[1753893847309,0.132,3794.5,3794.0,1.0286]
[1753893847644,3.132,3794.5,3794.1,0.8966]
[1753893847833,0.132,3794.5,3794.1,0.8966]
[1753893848006,0.132,3794.5,3794.1,0.4325]
[1753893848202,0.132,3794.5,3794.2,0.4641]
[1753893848652,3.132,3794.5,3794.2,0.4641]
[1753893849362,3.132,3794.5,3793.5,0.8173]
[1753893849559,0.03294328,3794.4,3793.8,0.132]
[1753893849854,4.17,3794.3,3793.8,0.132]
[1753893850240,0.03294502,3794.2,3793.8,1.0286]
[1753893850546,4.17,3794.3,3793.9,0.4641]
[1753893850908,4.17,3794.3,3793.9,0.4325]
[1753893851109,4.17,3794.3,3794.0,0.8966]
[1753893851352,4.17,3794.3,3794.1,0.8966]
[1753893851753,4.17,3794.3,3794.2,0.4641]
[1753893851958,3.0,3794.6,3794.2,1.7243]
[1753893852163,4.166,3794.5,3794.3,0.8966]
[1753893852683,3.132,3794.6,3794.2,0.8277]
[1753893852842,4.166,3794.5,3794.4,0.8966]
[1753893853174,4.166,3794.5,3794.2,1.2918]
[1753893853372,4.166,3794.5,3794.3,0.8966]
[1753893853580,4.166,3794.5,3794.2,0.8277]
[1753893853757,4.166,3794.5,3794.4,0.8966]
[1753893854501,6.335,3794.7,3794.4,0.8966]
[1753893854502,0.002,3794.7,3794.4,0.8966]
[1753893854710,4.165,3794.6,3794.4,0.132]
[1753893854872,4.165,3794.6,3794.5,0.8966]
[1753893855071,4.165,3794.6,3794.5,1.0286]
[1753893855308,0.002,3794.7,3794.6,0.8196]
[1753893855507,0.002,3794.7,3794.6,1.7162]
[1753893856227,0.002,3794.7,3794.6,0.8196]
[1753893856407,0.002,3794.7,3794.3,1.264]
[1753893856593,0.002,3794.7,3794.4,0.132]
[1753893856990,0.002,3794.7,3794.4,0.6029]
[1753893857190,0.002,3794.7,3794.4,1.0568]
[1753893857397,0.002,3794.7,3794.4,0.6029]
[1753893857593,3.50974068,3794.7,3794.1,0.4709]
[1753893857807,0.002,3794.7,3794.2,1.7175]
[1753893857983,4.165,3794.7,3794.3,0.9248]
[1753893858313,0.002,3794.7,3794.5,0.8062]
[1753893858534,0.002,3794.7,3794.6,0.9248]
[1753893858881,0.002,3794.7,3794.6,0.4539]
[1753893859114,0.002,3794.7,3794.6,0.9248]
[1753893862837,0.002,3794.7,3794.6,0.4709]
[1753893863184,0.002,3794.7,3794.1,0.7983]
[1753893863381,4.159,3794.6,3794.1,0.7983]
[1753893863826,4.159,3794.6,3794.1,1.2692]
[1753893864025,4.159,3794.6,3794.1,1.7231]
[1753893864224,4.159,3794.6,3793.8,1.2522]
[1753893864430,4.6338,3794.6,3793.8,1.7231]
[1753893864785,0.002,3794.7,3793.9,0.9248]
[1753893865080,0.002,3794.7,3794.1,2.63566926]
[1753893865307,4.161,3794.7,3794.3,0.762]
[1753893865510,4.161,3794.7,3794.4,0.9248]
[1753893865713,4.161,3794.7,3794.5,0.9248]
[1753893865886,4.161,3794.7,3794.6,0.9248]
[1753893866523,0.002,3794.7,3794.6,0.9248]
[1753893867837,0.002,3794.7,3794.6,1.0568]
[1753893871756,0.002,3794.7,3794.6,0.6029]
[1753893873428,0.002,3794.7,3794.6,0.132]
[1753893874019,0.002,3794.7,3794.1,0.4709]
[1753893874246,0.4748,3794.6,3793.9,1.257]
[1753893874487,0.4748,3794.6,3794.3,0.132]
[1753893874694,0.4748,3794.5,3794.1,0.132]
[1753893875041,0.6088,3794.7,3794.1,0.132]
[1753893875355,0.8126,3794.3,3793.5,0.7669]
[1753893875659,0.002,3794.7,3793.7,0.132]
[1753893875660,0.132,3794.2,3793.7,0.132]
[1753893875861,4.153,3794.5,3793.8,0.9248]
[1753893876053,4.153,3794.5,3793.9,0.9248]
[1753893876255,0.002,3794.7,3794.0,1.6777]
[1753893876547,4.154,3794.7,3794.2,0.7619]
[1753893876887,0.002,3794.7,3794.3,0.9248]
[1753893877382,0.002,3794.7,3794.4,0.9248]
[1753893877769,0.002,3794.7,3794.2,0.7619]
[1753893877977,0.002,3794.7,3794.5,0.9248]
[1753893878659,0.002,3794.7,3794.6,0.4709]
[1753893879985,0.002,3794.7,3794.3,0.4709]
[1753893881252,0.002,3794.7,3794.2,0.7619]
[1753893881253,0.4768,3794.7,3794.2,0.7619]
[1753893881489,0.4768,3794.7,3794.0,0.4709]
[1753893881658,0.03294154,3794.6,3793.9,0.7549]
[1753893881862,0.7723,3794.4,3793.6,0.7549]
[1753893882061,4.6208,3794.3,3793.6,0.7549]
[1753893882985,4.146,3794.3,3793.7,0.4709]
[1753893884712,4.146,3794.3,3793.6,0.7549]
[1753893884892,4.146,3794.3,3793.6,1.6797]
[1753893885207,4.146,3794.3,3793.6,1.2088]
[1753893885419,4.146,3794.3,3793.7,0.4709]
[1753893885894,4.146,3794.3,3793.8,0.132]
[1753893886126,4.146,3794.3,3793.8,0.6029]
[1753893886657,4.6226,3794.3,3793.8,0.6029]
[1753893886857,0.9194,3794.2,3793.4,0.4997]
[1753893887075,0.9194,3794.2,3793.7,0.132]
[1753893887298,4.146,3794.3,3793.7,0.132]
[1753893887484,0.9194,3794.1,3793.7,0.132]
[1753893888292,4.146,3794.3,3793.7,0.132]
[1753893888497,4.146,3794.3,3793.7,0.6317]
[1753893895398,4.146,3794.3,3793.7,0.132]
[1753893895602,4.146,3794.3,3794.1,0.132]
[1753893896624,4.141,3794.2,3794.1,0.132]
[1753893897033,4.141,3794.2,3794.1,0.6317]
[1753893897347,4.141,3794.2,3794.1,1.0821]
[1753893897504,4.141,3794.2,3794.1,0.6317]
[1753893897907,0.002,3794.7,3794.1,1.0821]
[1753893898107,4.141,3794.5,3793.9,0.8174]
[1753893898356,4.141,3794.5,3794.3,0.132]
[1753893898656,0.9194,3794.4,3794.2,0.132]
[1753893898951,0.7539,3794.3,3794.2,0.132]
[1753893899151,0.7539,3794.3,3793.8,0.132]
[1753893899368,0.9194,3794.2,3793.8,0.132]
[1753893899573,4.141,3794.1,3793.8,0.132]
[1753893900039,4.141,3794.1,3793.8,0.6317]
[1753893900462,4.141,3794.1,3793.9,0.9501]
[1753893900646,0.002,3794.3,3794.0,4.54768246]
[1753893900839,0.002,3794.3,3794.1,0.8299]
[1753893901051,0.002,3794.3,3794.2,0.15158317]
[1753893901364,0.002,3794.3,3794.2,1.0821]
[1753893904770,0.002,3794.3,3794.2,0.132]
[1753893905092,0.002,3794.3,3793.5,4.141]
[1753893905093,1.6896,3794.3,3793.5,4.141]
[1753893905286,5.354,3794.3,3793.9,0.132]
[1753893905573,0.9194,3794.2,3793.9,0.132]
[1753893905776,0.9194,3794.2,3793.3,0.4997]
[1753893905973,0.4428,3794.2,3793.7,0.132]
[1753893906174,0.4766,3794.1,3793.7,0.132]
[1753893906348,4.9112,3794.3,3793.7,0.132]
[1753893906550,0.9194,3794.0,3793.7,0.132]
[1753893907082,0.4766,3793.9,3793.7,0.132]
[1753893907782,0.8204,3793.7,3793.1,0.99514411]
[1753893907958,5.0594,3793.6,3793.1,1.12714411]
[1753893908141,1.7398,3793.5,3793.1,0.99514411]
[1753893908483,0.132,3793.3,3793.1,0.99514411]
[1753893908975,0.4766,3793.2,3793.1,0.99514411]
[1753893910173,0.9194,3793.2,3793.1,0.99514411]
[1753893911173,0.132,3793.3,3793.1,0.99514411]
[1753893911856,0.4766,3793.2,3793.1,0.99514411]
[1753893912978,0.5748,3793.3,3793.1,0.99514411]
[1753893912979,0.132,3793.3,3793.1,0.99514411]
[1753893913481,4.141,3793.3,3793.2,0.4504]
[1753893913643,0.132,3793.8,3793.2,0.6317]
[1753893913842,0.7793,3794.2,3793.3,0.9501]
[1753893914049,4.141,3794.1,3793.7,0.132]
[1753893914289,4.141,3794.1,3793.8,0.9501]
[1753893914491,4.141,3794.1,3793.9,0.132]
[1753893914693,4.141,3794.1,3793.9,0.5824]
[1753893915002,4.141,3794.1,3794.0,0.4997]
[1753893915797,0.002,3794.3,3794.0,0.4997]
[1753893915961,0.002,3794.3,3793.9,0.132]
[1753893916166,0.002,3794.3,3794.1,0.9501]
[1753893916399,0.002,3794.3,3794.1,1.0821]
[1753893916609,0.002,3794.3,3794.2,0.9363]
[1753893917810,0.002,3794.3,3794.1,0.132]
[1753893919002,0.002,3794.3,3793.6,0.8062]
[1753893919003,0.4622,3794.3,3793.6,0.8062]
[1753893919205,0.4622,3794.3,3794.0,0.132]
[1753893919809,0.002,3794.3,3794.0,0.132]
[1753893920025,0.4602,3794.2,3794.0,0.132]
[1753893920712,0.002,3794.3,3794.0,0.132]
[1753893921142,0.4622,3794.3,3794.0,0.132]
[1753893921606,0.002,3794.3,3794.0,0.132]
[1753893922167,0.002,3794.3,3794.1,0.9363]
[1753893922364,0.002,3794.3,3794.1,1.7674]
[1753893922660,0.002,3794.3,3794.2,0.9363]
[1753893922962,0.002,3794.3,3794.2,1.0683]
[1753893925036,0.002,3794.3,3794.2,1.08788256]
[1753893925256,0.002,3794.3,3794.2,1.0683]
[1753893925568,0.002,3794.3,3794.2,3.72348426]
[1753893926149,0.002,3794.3,3794.2,1.08788256]
[1753893926352,0.002,3794.3,3794.2,1.0683]
[1753893926870,0.002,3794.3,3794.2,1.08788256]
[1753893927081,0.002,3794.3,3794.2,1.0683]
[1753893927243,0.002,3794.3,3794.2,0.132]
[1753893928375,0.002,3794.3,3794.2,1.0683]
[1753893928676,0.002,3794.3,3794.2,4.51378426]
[1753893929276,0.002,3794.3,3794.2,1.87818256]
[1753893929495,0.002,3794.3,3794.2,1.8586]
[1753893929695,0.002,3794.3,3794.2,1.4191]
[1753893929901,0.002,3794.3,3794.2,0.132]
[1753893930771,0.4622,3794.3,3794.2,0.132]
[1753893930965,0.002,3794.3,3794.2,0.132]
[1753893931585,0.002,3794.3,3794.2,1.8586]
[1753893932363,0.002,3794.3,3794.2,4.4942017]
[1753893932559,0.002,3794.3,3794.2,1.8586]
[1753893932796,0.002,3794.3,3794.2,4.4942017]
[1753893933004,0.002,3794.3,3794.2,4.51378426]
[1753893933377,0.002,3794.3,3794.2,4.4942017]
[1753893933892,0.002,3794.3,3794.2,4.51378426]
[1753893934889,0.002,3794.3,3794.2,4.4942017]
[1753893936890,0.002,3794.3,3794.2,4.51378426]
[1753893937126,0.002,3794.3,3794.2,4.4942017]
[1753893937523,0.002,3794.3,3794.2,1.8586]
[1753893937951,0.002,3794.3,3794.2,0.132]
[1753893939124,0.002,3794.3,3794.2,3.7039017]
[1753893939329,0.002,3794.3,3794.2,3.72348426]
[1753893939626,0.002,3794.3,3794.2,4.50398426]
[1753893940688,0.002,3794.3,3794.2,1.8488]
[1753893940889,0.002,3794.3,3794.2,4.269]
[1753893942435,0.002,3794.3,3794.2,0.132]
[1753893943693,0.4622,3794.3,3794.2,0.132]
[1753893943891,0.8969,3794.3,3794.2,0.132]
[1753893944133,0.002,3794.3,3794.2,0.132]
[1753893947400,0.002,3794.3,3794.2,0.5832]
[1753893947601,0.002,3794.3,3794.2,1.0542]
[1753893947796,0.002,3794.3,3794.2,1.89828256]
[1753893948002,0.002,3794.3,3794.2,4.53388426]
[1753893948337,0.002,3794.3,3794.2,1.89828256]
[1753893948549,0.002,3794.3,3794.2,4.53388426]
[1753893948920,0.002,3794.3,3794.2,1.8787]
[1753893949699,0.002,3794.3,3794.2,4.5143017]
[1753893953216,0.002,3794.3,3794.2,7.5143017]
[1753893953635,0.002,3794.3,3794.2,9.820359]
[1753893954656,0.002,3794.3,3794.2,10.370359]
[1753893956034,0.002,3794.3,3794.2,14.505359]
[1753893957765,0.002,3794.3,3794.2,10.370359]
[1753893957923,0.002,3794.3,3794.2,11.6483017]
[1753893958122,0.002,3794.3,3794.2,10.7261017]
[1753893958466,0.002,3794.3,3794.2,4.266]
[1753893959532,0.4885,3794.3,3794.2,4.266]
[1753893959869,0.002,3794.3,3794.2,4.266]
[1753893960160,0.4885,3794.3,3794.2,4.266]
[1753893960367,1.0945,3794.3,3794.2,4.266]
[1753893960566,0.6598,3794.3,3794.2,4.266]
[1753893960996,0.1733,3794.3,3794.2,4.266]
[1753893961198,0.6598,3794.3,3794.2,0.132]
[1753893961400,1.0945,3794.3,3794.2,0.132]
[1753893963099,0.6598,3794.3,3794.2,0.132]
[1753893963298,0.002,3794.3,3794.2,0.132]
[1753893963969,0.4885,3794.3,3794.2,0.132]
[1753893964154,1.7347,3794.3,3794.2,0.132]
[1753893967763,1.3,3794.3,3794.2,0.132]
[1753893969164,0.002,3794.3,3794.2,0.132]
[1753893969913,0.002,3794.3,3794.2,1.0542]
[1753893970559,0.002,3794.3,3794.2,9.49350247]
[1753893970865,0.002,3794.3,3794.2,9.47391991]
[1753893971559,0.002,3794.3,3794.2,4.264]
[1753893973594,0.002,3794.3,3794.2,4.263]
[1753893973794,0.9232,3794.3,3794.2,0.132]
[1753893974397,1.7414,3794.3,3794.2,0.132]
[1753893974715,1.91554,3794.3,3794.2,0.132]
[1753893976823,1.90964,3794.3,3794.2,0.132]
[1753893983093,0.99434,3794.3,3794.2,0.132]
[1753893983308,0.002,3794.3,3794.2,0.132]
[1753893983513,0.002,3794.3,3794.2,1.0335]
[1753893983726,0.002,3794.3,3794.2,0.5979]
[1753893984109,0.002,3794.3,3794.2,1.0335]
[1753893986312,0.002,3794.3,3794.2,6.81761821]
[1753893986517,0.002,3794.3,3794.2,1.0335]
[1753893989267,0.002,3794.3,3794.2,9.47280247]
[1753893989576,0.002,3794.3,3794.2,7.63721821]
[1753893989729,0.002,3794.3,3794.2,10.27281991]
[1753893990256,0.002,3794.3,3794.2,7.63721821]
[1753893990409,0.002,3794.3,3794.2,10.27281991]
[1753893990614,0.002,3794.3,3794.2,7.63721821]
[1753893990881,0.002,3794.3,3794.2,11.44944173]
[1753893991035,0.002,3794.3,3794.2,14.99944173]
[1753893991236,0.002,3794.7,3794.6,3.40942388]
[1753893991565,0.002,3794.7,3794.6,16.8911177]
[1753893991882,0.002,3794.7,3794.6,17.90504209]
[1753893992263,0.002,3794.7,3794.6,19.30009355]
[1753893993191,0.002,3794.7,3794.6,15.17209355]
[1753893993340,0.002,3794.7,3794.6,7.44292388]
[1753893993542,0.002,3794.7,3794.6,4.26]
[1753893993974,0.002,3794.7,3794.6,4.7259]
[1753893994178,0.002,3794.7,3794.6,4.26]
[1753893995071,0.002,3794.7,3794.6,4.7259]
[1753893995379,0.002,3794.7,3794.6,4.26]
[1753894001265,0.002,3794.7,3794.6,4.7259]
[1753894001691,0.002,3794.7,3794.6,4.26]
[1753894004307,1.7504,3794.7,3794.6,0.132]
[1753894004673,1.92944,3794.7,3794.6,0.132]
[1753894005144,0.8331,3794.6,3793.1,1.46104411]
[1753894005285,1.09634,3794.7,3793.1,5.12014411]
[1753894005286,0.8331,3794.3,3793.1,5.12014411]
[1753894005632,0.132,3793.8,3793.3,0.132]
[1753894005783,1.7484,3793.7,3793.3,0.132]
[1753894005985,1.10334,3793.6,3793.3,0.132]
[1753894006500,0.9153,3793.5,3793.3,0.132]
[1753894006913,0.9287,3793.4,3793.3,0.132]
[1753894007484,0.4839,3794.0,3793.3,0.132]
[1753894007690,0.7825,3794.6,3793.6,8.78991387]
[1753894007919,0.7825,3794.6,3793.7,5.05888696]
[1753894008097,0.7825,3794.6,3793.7,7.21373009]
[1753894008320,0.7825,3794.6,3793.8,0.4615]
[1753894009229,0.002,3794.3,3793.8,0.4615]
[1753894009534,0.002,3794.3,3793.9,0.9153]
[1753894010026,0.002,3794.3,3794.0,0.4615]
[1753894011136,0.002,3794.3,3793.8,0.4615]
[1753894011337,0.002,3794.3,3794.0,0.4615]
[1753894011633,0.002,3794.3,3794.0,0.9153]
[1753894011793,0.002,3794.3,3794.1,0.9153]
[1753894011991,0.002,3794.3,3794.1,3.57050995]
[1753894012187,0.002,3794.3,3794.2,0.9153]
[1753894017939,0.002,3794.3,3794.2,4.4449017]
[1753894018139,0.002,3794.3,3794.2,5.56731844]
[1753894018909,0.002,3794.3,3794.2,2.93171674]
[1753894019239,0.002,3794.3,3794.2,5.56731844]
[1753894022316,0.002,3794.3,3794.2,2.93171674]
[1753894023150,0.002,3794.3,3794.2,5.56731844]
[1753894023966,0.002,3794.3,3794.2,1.25441674]
[1753894024143,0.002,3794.3,3794.2,4.254]
[1753894024767,0.002,3794.3,3794.2,4.7155]
[1753894026268,0.002,3794.3,3794.2,7.8049017]
[1753894027360,0.002,3794.3,3794.2,0.132]
[1753894027562,0.002,3794.3,3794.2,4.253]
[1753894030145,0.002,3794.3,3794.2,8.27654006]
[1753894030349,0.002,3794.3,3794.2,9.04454006]
[1753894032205,0.002,3794.3,3794.2,8.5719017]
[1753894034280,0.002,3794.3,3794.2,4.253]
[1753894035684,0.002,3794.3,3794.2,6.90818426]
[1753894035873,0.002,3794.3,3794.2,7.3501017]
[1753894036373,0.002,3794.3,3794.2,7.8039017]
[1753894036691,0.002,3794.3,3794.2,4.253]
[1753894036887,0.002,3794.3,3794.2,6.8886017]
[1753894037596,0.002,3794.3,3794.2,7.8169017]
[1753894039257,0.002,3794.3,3794.2,8.5756017]
[1753894039488,0.002,3794.3,3794.2,21.48566963]
[1753894041382,0.002,3794.3,3794.2,22.03566963]
[1753894044773,0.002,3794.7,3794.6,7.00002388]
[1753894044968,0.04,3794.9,3794.8,3.18518498]
[1753894045212,0.04,3795.9,3795.8,2.63449075]
[1753894045500,0.04,3795.9,3795.8,7.2979519]
[1753894045801,0.04,3795.9,3795.8,8.33869711]
[1753894053813,0.042,3795.9,3795.8,8.88869711]
[1753894054800,0.042,3795.9,3795.8,14.66526518]
[1753894055794,0.042,3795.9,3795.8,17.66526518]
[1753894057835,3.04,3797.9,3796.4,9.23613243]
[1753894058019,0.4463,3797.1,3796.6,2.63388661]
[1753894058239,3.04,3797.9,3797.1,0.132]
[1753894058537,3.04,3797.9,3797.1,4.113]
[1753894058928,0.4483,3797.2,3797.1,4.113]
[1753894059427,0.4483,3797.2,3797.1,4.112]
[1753894059803,0.7313,3797.2,3797.1,4.112]
[1753894060840,1.5061,3797.2,3797.1,4.112]
[1753894061133,1.2231,3797.2,3797.1,4.112]
[1753894061339,0.002,3797.2,3797.1,4.112]
[1753894062213,0.7313,3797.2,3797.1,4.112]
[1753894062746,0.7313,3797.2,3797.1,4.111]
[1753894063104,0.88191,3797.2,3797.0,0.132]
[1753894063333,0.7768,3797.2,3797.1,4.111]
[1753894063541,0.7768,3797.2,3797.0,0.132]
[1753894063903,1.5041,3797.1,3797.0,0.132]
[1753894064102,0.7748,3797.0,3796.6,0.132]
[1753894064318,0.80772159,3796.9,3796.6,0.132]
[1753894064539,0.7977,3796.8,3796.0,4.111]
[1753894064743,0.7977,3796.6,3796.2,0.132]
[1753894064981,0.7977,3796.4,3796.2,0.132]
[1753894065150,1.68299251,3796.3,3796.2,0.132]
[1753894065677,0.7977,3796.2,3796.0,0.132]
[1753894065888,1.527,3796.2,3796.0,0.132]
[1753894066178,0.7293,3796.1,3796.0,0.132]
[1753894066675,1.527,3796.1,3796.0,0.132]
[1753894066876,0.7977,3796.0,3795.1,0.04]
[1753894067089,0.7977,3796.0,3795.5,0.132]
[1753894067248,0.7977,3795.8,3795.1,0.04]
[1753894067437,0.7977,3795.6,3795.3,0.132]
[1753894067840,0.7211,3795.5,3795.3,0.132]
[1753894068377,0.7211,3795.4,3795.3,0.132]
[1753894069982,1.2358,3795.4,3795.3,0.132]
[1753894070181,0.7977,3795.3,3795.1,0.04]
[1753894070344,0.31681634,3795.2,3795.1,0.04]
[1753894070545,1.83561634,3795.2,3795.1,0.04]
[1753894073650,5.38561634,3795.2,3795.1,0.04]
[1753894073862,35.27907382,3795.2,3794.1,0.041]
[1753894074062,0.55,3794.9,3794.1,0.041]
[1753894074361,0.9142,3794.2,3794.1,0.041]
[1753894074578,1.6353,3794.2,3794.1,0.041]
[1753894074954,1.66824502,3794.2,3794.1,0.041]
[1753894075389,1.6353,3794.2,3794.1,0.041]
[1753894075682,2.50983,3794.2,3794.1,0.041]
[1753894077064,6.05983,3794.2,3794.1,0.041]
[1753894081521,36.05983,3794.2,3794.1,0.041]
[1753894083716,6.05983,3794.2,3794.1,0.041]
[1753894083882,36.05983,3794.2,3794.1,0.041]
[1753894084613,40.16983,3794.2,3794.1,0.041]
[1753894085727,39.88683,3794.2,3794.1,0.041]
[1753894085903,40.16983,3794.2,3794.1,0.041]
[1753894087587,40.54892713,3794.2,3794.1,0.041]
[1753894088494,0.55,3793.9,3793.3,0.001]
[1753894088696,43.15191107,3793.4,3793.3,0.001]
[1753894089042,43.15191107,3793.4,3792.2,0.4744]
[1753894089043,3.55,3793.3,3792.2,0.4744]
[1753894089196,3.55,3792.9,3792.2,0.4744]
[1753894089520,0.132,3792.3,3792.1,0.04]
[1753894089722,4.109,3792.2,3792.1,0.04]
[1753894089930,4.5331,3792.2,3792.1,0.5144]
[1753894090132,4.5331,3792.2,3792.1,0.9541]
[1753894090934,0.7738,3793.2,3792.1,1.7385]
[1753894091135,0.132,3792.7,3792.2,1.0461]